{"text_format":"1","workbook":"xlsx","n_sheets":2,"sheets":["تسلسل بشروط","data"],"not_rendered":{"charts":0,"images":0,"macros":0,"external_links":0,"defined_names":1,"comments":0,"pivot_tables":0},"unopened":[],"bounds":{"document_bytes":16777216,"sheet_cells":100000,"rows_first":2000,"rows_last":500,"rows_between":2000,"halvings":0,"cell_chars":16384,"cell_head_chars":4096},"cells_cut":0,"cells_raw":0,"read":"whole","date_system":"1900"}

{"sheet":"تسلسل بشروط","index":0,"n_rows":18,"n_cols":14,"rows_kept":18,"cut":false,"hidden":false,"merged":[]}
[null,null,null,null,"عدد الصفوف"]
[null,null,null,null,8]
[]
[null,"القسم","الاسم",null,null,null,null,null,null,null,null,null,"القسم","الاسم"]
[null,{"$f":"IF(ROWS($A$1:A1)<=$E$2,1,3)","v":1},"مصطفى3",null,null,null,null,null,null,null,null,null,{"$f":"IF(ROWS($A$1:A1)<=$E$2,2,3)","v":2},"مصطفى1"]
[null,{"$f":"IF(ROWS($A$1:A2)<=$E$2,1,3)","v":1},"مصطفى6",null,null,null,null,null,null,null,null,null,{"$f":"IF(ROWS($A$1:A2)<=$E$2,2,3)","v":2},"مصطفى4"]
[null,{"$f":"IF(ROWS($A$1:A3)<=$E$2,1,3)","v":1},"مصطفى9",null,null,null,null,null,null,null,null,null,{"$f":"IF(ROWS($A$1:A3)<=$E$2,2,3)","v":2},"مصطفى7"]
[null,{"$f":"IF(ROWS($A$1:A4)<=$E$2,1,3)","v":1},"مصطفى12",null,null,null,null,null,null,null,null,null,{"$f":"IF(ROWS($A$1:A4)<=$E$2,2,3)","v":2},"مصطفى10"]
[null,{"$f":"IF(ROWS($A$1:A5)<=$E$2,1,3)","v":1},"مصطفى15",null,null,null,null,null,null,null,null,null,{"$f":"IF(ROWS($A$1:A5)<=$E$2,2,3)","v":2},"مصطفى13"]
[null,{"$f":"IF(ROWS($A$1:A6)<=$E$2,1,3)","v":1},"مصطفى18",null,null,null,null,null,null,null,null,null,{"$f":"IF(ROWS($A$1:A6)<=$E$2,2,3)","v":2},"مصطفى16"]
[null,{"$f":"IF(ROWS($A$1:A7)<=$E$2,1,3)","v":1},"مصطفى21",null,null,null,null,null,null,null,null,null,{"$f":"IF(ROWS($A$1:A7)<=$E$2,2,3)","v":2},"مصطفى19"]
[null,{"$f":"IF(ROWS($A$1:A8)<=$E$2,1,3)","v":1},"مصطفى24",null,null,null,null,null,null,null,null,null,{"$f":"IF(ROWS($A$1:A8)<=$E$2,2,3)","v":2},"مصطفى22"]
[null,{"$f":"IF(ROWS($A$1:A9)<=$E$2,1,3)","v":3},"مصطفى27",null,null,null,null,null,null,null,null,null,{"$f":"IF(ROWS($A$1:A9)<=$E$2,2,3)","v":3},"مصطفى25"]
[null,{"$f":"IF(ROWS($A$1:A10)<=$E$2,1,3)","v":3},"مصطفى30",null,null,null,null,null,null,null,null,null,{"$f":"IF(ROWS($A$1:A10)<=$E$2,2,3)","v":3},"مصطفى28"]
[null,{"$f":"IF(ROWS($A$1:A11)<=$E$2,1,3)","v":3},"مصطفى33",null,null,null,null,null,null,null,null,null,{"$f":"IF(ROWS($A$1:A11)<=$E$2,2,3)","v":3},"مصطفى31"]
[null,{"$f":"IF(ROWS($A$1:A12)<=$E$2,1,3)","v":3},"مصطفى36",null,null,null,null,null,null,null,null,null,{"$f":"IF(ROWS($A$1:A12)<=$E$2,2,3)","v":3},"مصطفى34"]
[null,{"$f":"IF(ROWS($A$1:A13)<=$E$2,1,3)","v":3},"مصطفى39",null,null,null,null,null,null,null,null,null,{"$f":"IF(ROWS($A$1:A13)<=$E$2,2,3)","v":3},"مصطفى37"]
[null,{"$f":"IF(ROWS($A$1:A14)<=$E$2,1,3)","v":3},"مصطفى42",null,null,null,null,null,null,null,null,null,{"$f":"IF(ROWS($A$1:A14)<=$E$2,2,3)","v":3},"مصطفى40"]

{"sheet":"data","index":1,"n_rows":159,"n_cols":5,"rows_kept":159,"cut":false,"hidden":false,"merged":[]}
[]
[]
[]
[null,null,"الاسم",null,"القسم"]
[null,null,"مصطفى1",null,2]
[null,null,"مصطفى2",null,3]
[null,null,"مصطفى3",null,1]
[null,null,"مصطفى4",null,2]
[null,null,"مصطفى5",null,3]
[null,null,"مصطفى6",null,1]
[null,null,"مصطفى7",null,2]
[null,null,"مصطفى8",null,3]
[null,null,"مصطفى9",null,1]
[null,null,"مصطفى10",null,2]
[null,null,"مصطفى11",null,3]
[null,null,"مصطفى12",null,1]
[null,null,"مصطفى13",null,2]
[null,null,"مصطفى14",null,3]
[null,null,"مصطفى15",null,1]
[null,null,"مصطفى16",null,2]
[null,null,"مصطفى17",null,3]
[null,null,"مصطفى18",null,1]
[null,null,"مصطفى19",null,2]
[null,null,"مصطفى20",null,3]
[null,null,"مصطفى21",null,1]
[null,null,"مصطفى22",null,2]
[null,null,"مصطفى23",null,3]
[null,null,"مصطفى24",null,1]
[null,null,"مصطفى25",null,2]
[null,null,"مصطفى26",null,3]
[null,null,"مصطفى27",null,1]
[null,null,"مصطفى28",null,2]
[null,null,"مصطفى29",null,3]
[null,null,"مصطفى30",null,1]
[null,null,"مصطفى31",null,2]
[null,null,"مصطفى32",null,3]
[null,null,"مصطفى33",null,1]
[null,null,"مصطفى34",null,2]
[null,null,"مصطفى35",null,3]
[null,null,"مصطفى36",null,1]
[null,null,"مصطفى37",null,2]
[null,null,"مصطفى38",null,3]
[null,null,"مصطفى39",null,1]
[null,null,"مصطفى40",null,2]
[null,null,"مصطفى41",null,3]
[null,null,"مصطفى42",null,1]
[null,null,"مصطفى43",null,2]
[null,null,"مصطفى44",null,3]
[null,null,"مصطفى45",null,1]
[null,null,"مصطفى46",null,2]
[null,null,"مصطفى47",null,3]
[null,null,"مصطفى48",null,1]
[null,null,"مصطفى49",null,2]
[null,null,"مصطفى50",null,3]
[null,null,"مصطفى51",null,1]
[null,null,"مصطفى52",null,2]
[null,null,"مصطفى53",null,3]
[null,null,"مصطفى54",null,1]
[null,null,"مصطفى55",null,2]
[null,null,"مصطفى56",null,3]
[null,null,"مصطفى57",null,1]
[null,null,"مصطفى58",null,2]
[null,null,"مصطفى59",null,3]
[null,null,"مصطفى60",null,1]
[null,null,"مصطفى61",null,2]
[null,null,"مصطفى62",null,3]
[null,null,"مصطفى63",null,1]
[null,null,"مصطفى64",null,2]
[null,null,"مصطفى65",null,3]
[null,null,"مصطفى66",null,1]
[null,null,"مصطفى67",null,2]
[null,null,"مصطفى68",null,3]
[null,null,"مصطفى69",null,1]
[null,null,"مصطفى70",null,2]
[null,null,"مصطفى71",null,3]
[null,null,"مصطفى72",null,1]
[null,null,"مصطفى73",null,2]
[null,null,"مصطفى74",null,3]
[null,null,"مصطفى75",null,1]
[null,null,"مصطفى76",null,2]
[null,null,"مصطفى77",null,3]
[null,null,"مصطفى78",null,1]
[null,null,"مصطفى79",null,2]
[null,null,"مصطفى80",null,3]
[null,null,"مصطفى81",null,1]
[null,null,"مصطفى82",null,2]
[null,null,"مصطفى83",null,3]
[null,null,"مصطفى84",null,1]
[null,null,"مصطفى85",null,2]
[null,null,"مصطفى86",null,3]
[null,null,"مصطفى87",null,1]
[null,null,"مصطفى88",null,2]
[null,null,"مصطفى89",null,3]
[null,null,"مصطفى90",null,1]
[null,null,"مصطفى91",null,2]
[null,null,"مصطفى92",null,3]
[null,null,"مصطفى93",null,1]
[null,null,"مصطفى94",null,2]
[null,null,"مصطفى95",null,3]
[null,null,"مصطفى96",null,1]
[null,null,"مصطفى97",null,2]
[null,null,"مصطفى98",null,3]
[null,null,"مصطفى99",null,2]
[null,null,"مصطفى100",null,3]
[null,null,"مصطفى101",null,1]
[null,null,"مصطفى102",null,2]
[null,null,"مصطفى103",null,3]
[null,null,"مصطفى104",null,1]
[null,null,"مصطفى105",null,2]
[null,null,"مصطفى106",null,3]
[null,null,"مصطفى107",null,1]
[null,null,"مصطفى108",null,2]
[null,null,"مصطفى109",null,3]
[null,null,"مصطفى110",null,1]
[null,null,"مصطفى111",null,2]
[null,null,"مصطفى112",null,3]
[null,null,"مصطفى113",null,1]
[null,null,"مصطفى114",null,2]
[null,null,"مصطفى115",null,3]
[null,null,"مصطفى116",null,1]
[null,null,"مصطفى117",null,2]
[null,null,"مصطفى118",null,3]
[null,null,"مصطفى119",null,1]
[null,null,"مصطفى120",null,2]
[null,null,"مصطفى121",null,3]
[null,null,"مصطفى122",null,1]
[null,null,"مصطفى123",null,2]
[null,null,"مصطفى124",null,3]
[null,null,"مصطفى125",null,1]
[null,null,"مصطفى126",null,2]
[null,null,"مصطفى127",null,3]
[null,null,"مصطفى128",null,1]
[null,null,"مصطفى129",null,2]
[null,null,"مصطفى130",null,3]
[null,null,"مصطفى131",null,1]
[null,null,"مصطفى132",null,2]
[null,null,"مصطفى133",null,3]
[null,null,"مصطفى134",null,1]
[null,null,"مصطفى135",null,2]
[null,null,"مصطفى136",null,3]
[null,null,"مصطفى137",null,1]
[null,null,"مصطفى138",null,2]
[null,null,"مصطفى139",null,3]
[null,null,"مصطفى140",null,1]
[null,null,"مصطفى141",null,2]
[null,null,"مصطفى142",null,3]
[null,null,"مصطفى143",null,1]
[null,null,"مصطفى144",null,2]
[null,null,"مصطفى145",null,3]
[null,null,"مصطفى146",null,1]
[null,null,"مصطفى147",null,2]
[null,null,"مصطفى148",null,3]
[null,null,"مصطفى149",null,1]
[null,null,"مصطفى150",null,2]
[null,null,"مصطفى151",null,3]
[null,null,"مصطفى152",null,1]
[null,null,"مصطفى153",null,2]
[null,null,"مصطفى154",null,3]
[null,null,"مصطفى155",null,1]